bitfinex/quotes_SOLUSD_20240912
["timestamp","ask_amount","ask_price","bid_price","bid_amount"]
[1726144344360,32.29128661,135.08,135.07,0.1555884]
[1726144344788,54.54128661,135.08,135.07,0.1555884]
[1726144345491,30.439584,135.08,135.07,0.1555884]
[1726144346287,23.776884,135.08,135.07,0.1555884]
[1726144346586,32.29128745,135.08,135.07,0.1555884]
[1726144346779,30.439584,135.08,135.07,0.1555884]
[1726144347569,23.776884,135.08,135.07,0.1555884]
[1726144347889,22.3229,135.09,135.07,0.1555884]
[1726144348102,1.85148714,135.08,135.07,0.1555884]
[1726144348386,30.76425237,135.08,135.07,0.1555884]
[1726144349586,54.54113637,135.08,135.07,0.1555884]
[1726144351776,52.689584,135.08,135.07,0.1555884]
[1726144353195,23.776884,135.03,135.02,0.2915721]
[1726144353867,25.62911231,135.03,135.02,0.2915721]
[1726144354066,47.87911231,135.03,135.02,0.2915721]
[1726144356481,46.026884,135.03,135.02,0.2915721]
[1726144356876,28.5475,135.05,135.02,0.2915721]
[1726144357111,22.25,135.06,135.02,0.2915721]
[1726144358466,1.85193958,135.05,135.02,0.2915721]
[1726144358879,28.9143,135.05,135.02,0.2915721]
[1726144359188,22.25,135.05,135.02,0.2915721]
[1726144359386,46.026884,135.04,135.02,0.2915721]
[1726144359590,23.776884,135.03,135.02,0.2915721]
[1726144359981,47.87908898,135.03,135.02,0.2915721]
[1726144360185,23.776884,135.03,135.02,0.2915721]
[1726144362405,25.62884922,135.03,135.02,0.2915721]
[1726144362617,47.87884922,135.03,135.02,0.2915721]
[1726144362983,46.026884,135.03,135.02,0.2915721]
[1726144365296,47.87914472,135.03,135.02,0.2915721]
[1726144365509,54.54424472,135.03,135.02,0.2915721]
[1726144365710,71.05264472,135.03,135.02,0.2915721]
[1726144365923,71.05264472,135.03,134.98,0.2915721]
[1726144365924,22.25,134.99,134.98,0.2915721]
[1726144366096,1.85276836,135.01,134.98,0.2915721]
[1726144366413,6.2765,135.02,134.98,0.2915721]
[1726144366594,8.1288492,135.02,134.98,0.2915721]
[1726144366993,1.8523492,135.02,134.98,0.2915721]
[1726144367198,40.285284,135.03,134.98,0.2915721]
[1726144367824,23.776884,135.01,134.98,0.2915721]
[1726144368323,25.62920123,135.02,134.98,0.2915721]
[1726144368494,23.776884,135.0,134.98,0.2915721]
[1726144369189,23.776884,135.0,134.95,23.08394251]
[1726144369404,23.776884,135.0,134.98,0.2705801]
[1726144371494,23.776884,135.04,134.98,0.2705801]
[1726144371892,15.2948,135.06,134.98,0.2705801]
[1726144372208,30.60825017,135.08,134.98,30.3484801]
[1726144372413,6.6634,135.07,134.98,30.3484801]
[1726144373098,1.851868,135.06,134.98,30.3484801]
[1726144373320,1.85186757,135.07,134.99,23.08394251]
[1726144373492,1.8518089,135.06,134.98,30.3484801]
[1726144373692,6.6635,135.07,134.98,30.3484801]
[1726144373915,6.6637,135.06,134.98,10.3484801]
[1726144374611,23.776884,135.05,134.98,10.3484801]
[1726144375293,1.85207182,135.04,134.98,10.3484801]
[1726144375620,23.776884,135.03,134.98,10.3484801]
[1726144375790,23.776884,135.03,134.98,0.2705801]
[1726144375990,23.776884,135.04,134.98,0.2705801]
[1726144376534,23.776884,135.03,134.98,0.2705801]
[1726144377915,8.35835017,135.08,134.98,23.35452261]
[1726144378118,1.69525017,135.08,134.98,23.35452261]
[1726144378319,1.69525017,135.08,135.0,23.08394251]
[1726144378498,28.9127,135.08,135.0,23.08394251]
[1726144378694,22.25,135.08,135.0,23.08394251]
[1726144378900,22.9571,135.09,135.0,23.08394251]
[1726144379218,45.2071,135.09,135.01,10.0779]
[1726144379516,6.6628,135.08,135.01,10.0779]
[1726144379824,28.9128,135.08,135.01,10.0779]
[1726144380025,22.25,135.08,135.01,10.0779]
[1726144380321,23.776884,135.08,135.01,10.0779]
[1726144380628,45.2071,135.09,135.01,10.0779]
[1726144381000,1.85147284,135.08,135.01,10.0779]
[1726144381198,1.85168371,135.07,135.01,10.0779]
[1726144381840,23.776884,135.07,135.01,10.0779]
[1726144383033,22.25,135.1,135.02,23.08394251]
[1726144383338,22.25,135.1,135.03,4.0834]
[1726144384010,22.25,135.11,135.03,4.0834]
[1726144384632,23.776884,135.1,135.03,4.0834]
[1726144384931,30.438584,135.1,135.03,4.0834]
[1726144385145,30.438584,135.1,135.01,10.0779]
[1726144385146,46.026884,135.08,135.01,10.0779]
[1726144386208,46.026884,135.06,134.98,23.35452261]
[1726144386627,23.776884,135.06,134.98,23.35452261]
[1726144386826,50.0,135.1,134.98,23.35452261]
[1726144386827,23.776884,135.07,134.98,23.35452261]
[1726144387701,23.776884,135.05,134.98,23.35452261]
[1726144387906,46.026884,135.04,134.98,0.2705801]
[1726144388112,23.776884,135.02,134.98,0.2705801]
[1726144388531,23.776884,135.03,134.98,0.2705801]
[1726144389530,23.776884,135.04,134.98,0.2705801]
[1726144389733,23.776884,135.02,134.98,0.2705801]
[1726144389913,23.776884,135.0,134.98,0.2705801]
[1726144391037,23.776884,135.01,134.98,0.2705801]
[1726144392708,25.62921171,135.01,134.98,0.2705801]
[1726144392907,23.776884,135.01,134.98,0.2705801]
[1726144393132,30.442684,135.02,134.98,0.2705801]
[1726144393436,25.62944115,135.01,134.98,0.2705801]
[1726144393638,23.776884,135.01,134.98,0.2705801]
[1726144394010,23.776884,135.02,134.98,0.2705801]
[1726144394522,30.442584,135.02,134.98,0.2705801]
[1726144394828,23.776884,135.01,134.98,0.2705801]
[1726144396028,23.776884,134.99,134.98,0.2705801]
[1726144397035,30.443984,134.99,134.98,0.2705801]
[1726144397518,23.776884,134.99,134.98,0.2705801]
[1726144397722,30.443984,134.99,134.98,0.2705801]
[1726144398128,52.693984,134.99,134.98,0.2705801]
[1726144398322,23.776884,134.97,134.94,0.2658211]
[1726144399625,30.444984,134.97,134.94,0.2658211]
[1726144400420,23.776884,134.97,134.94,0.2658211]
[1726144400620,30.445084,134.97,134.94,0.2658211]
[1726144401425,23.776884,134.95,134.94,0.2658211]
[1726144404857,52.695984,134.95,134.94,0.2658211]
[1726144405027,54.54967957,134.95,134.94,0.2658211]
[1726144406147,126.05217957,134.95,134.94,0.2658211]
[1726144406329,23.776884,134.93,134.9,0.2658211]
[1726144406649,6.6696,134.94,134.9,0.2658211]
[1726144406825,79.86695017,134.95,134.9,0.2658211]
[1726144407025,29.86695017,134.95,134.9,0.2658211]
[1726144407240,52.11695017,134.95,134.9,0.2658211]
[1726144407848,23.19775017,134.95,134.9,0.2658211]
[1726144408226,1.85353983,134.94,134.9,0.2658211]
[1726144408430,23.19775017,134.95,134.9,0.2658211]
[1726144409653,23.776884,134.94,134.9,0.2658211]
[1726144410540,23.776884,134.95,134.9,0.2658211]
[1726144410950,23.776884,134.93,134.9,0.2658211]
[1726144411431,46.026884,134.92,134.9,0.2658211]
[1726144411634,23.776884,134.91,134.9,0.2658211]
[1726144413536,1.85369965,134.93,134.9,0.2658211]
[1726144413740,22.25,134.94,134.9,0.2658211]
[1726144413936,22.25,134.95,134.9,0.2658211]
[1726144414944,28.9192,134.95,134.9,0.2658211]
[1726144415151,22.25,134.95,134.9,0.2658211]
[1726144415354,22.25,134.93,134.9,0.2658211]
[1726144415659,23.776884,134.91,134.9,0.2658211]
[1726144415830,46.026884,134.91,134.9,0.2658211]
[1726144416354,47.88079899,134.91,134.9,0.2658211]
[1726144417437,54.55189899,134.91,134.9,0.2658211]
[1726144417751,124.55189899,134.91,134.9,0.2658211]
[1726144418264,124.55189899,134.91,134.86,0.2658211]
[1726144418265,46.026884,134.87,134.86,0.2658211]
[1726144418759,23.776884,134.87,134.86,0.2658211]
[1726144419756,23.776884,134.87,134.86,0.2054017]
[1726144421458,25.63135909,134.87,134.86,0.2054017]
[1726144421763,23.776884,134.87,134.86,0.2054017]
[1726144424356,25.63148486,134.87,134.86,0.2054017]
[1726144424561,31.89638486,134.87,134.86,0.2054017]
[1726144425063,30.041784,134.87,134.86,0.2054017]
[1726144425358,31.89631675,134.87,134.86,0.2054017]
[1726144426055,38.56931675,134.87,134.86,0.2054017]
[1726144426266,54.95961675,134.87,134.86,0.2054017]
[1726144426640,77.20961675,134.87,134.86,0.2054017]
[1726144427474,97.20961675,134.87,134.86,0.2054017]
[1726144428276,23.776884,134.85,134.83,0.2751331]
[1726144428443,1.85500023,134.84,134.83,0.2751331]
[1726144428753,8.52950023,134.84,134.83,0.2751331]
[1726144429274,21.85513573,134.84,134.83,0.2751331]
[1726144429443,76.6745,134.84,134.83,0.2751331]
[1726144429768,70.0,134.84,134.83,0.2751331]
[1726144430263,42.25,134.84,134.83,0.2751331]
[1726144430457,6.675,134.83,134.79,0.2751331]
[1726144430659,46.026884,134.83,134.79,0.2751331]
[1726144430861,52.701984,134.83,134.79,0.2751331]
[1726144431043,6.6756,134.82,134.79,0.2751331]
[1726144431248,21.6913,134.81,134.79,0.2751331]
[1726144431946,23.5466534,134.81,134.79,0.2751331]
[1726144432137,21.6913,134.81,134.79,0.2751331]
[1726144432438,22.25,134.8,134.79,0.2751331]
[1726144432643,46.026884,134.8,134.79,0.2751331]
[1726144432870,47.88242904,134.8,134.79,0.2751331]
[1726144433072,46.026884,134.8,134.79,0.2751331]
[1726144433250,47.88242843,134.8,134.79,0.2751331]
[1726144434151,54.55892843,134.8,134.79,0.2751331]
[1726144434345,54.55892843,134.8,134.74,0.2751331]
[1726144434346,22.25,134.78,134.74,0.2751331]
[1726144435362,22.25,134.79,134.74,0.2751331]
[1726144435754,28.9271,134.79,134.74,0.2751331]
[1726144435956,22.25,134.79,134.74,0.2751331]
[1726144436562,23.776884,134.78,134.74,0.2751331]
[1726144436760,22.25,134.8,134.74,0.2751331]
[1726144437352,7.69005053,134.82,134.74,0.2751331]
[1726144437669,22.25,134.83,134.74,33.43697561]
[1726144438165,22.25,134.82,134.74,10.3530331]
[1726144438682,28.9256,134.82,134.74,10.3530331]
[1726144439053,23.776884,134.79,134.74,10.3530331]
[1726144439248,23.776884,134.8,134.74,10.3530331]
[1726144439757,46.026884,134.8,134.74,0.2751331]
[1726144439959,23.776884,134.8,134.74,0.2751331]
[1726144440368,23.776884,134.78,134.74,0.2751331]
[1726144441775,46.026884,134.79,134.74,0.2751331]
[1726144442855,23.776884,134.79,134.74,0.2751331]
[1726144443742,20.0,134.82,134.74,0.2751331]
[1726144443945,22.25,134.82,134.74,0.2751331]
[1726144444475,28.9257,134.82,134.74,0.2751331]
[1726144444774,6.677,134.8,134.74,0.2751331]
[1726144444982,30.78287835,134.79,134.74,0.2751331]
[1726144445155,28.9272,134.79,134.74,0.2751331]
[1726144445358,46.026884,134.78,134.74,0.2751331]
[1726144445855,1.85586325,134.77,134.74,0.2751331]
[1726144446068,23.776884,134.76,134.74,0.2751331]
[1726144446457,23.776884,134.75,134.74,0.2751331]
[1726144448752,20.0,134.8,134.74,0.2751331]
[1726144449073,22.2784,134.83,134.74,0.2751331]
[1726144449374,22.2784,134.86,134.75,27.16734251]
[1726144449575,22.2784,134.86,134.76,10.0779]
[1726144449786,44.5284,134.86,134.76,10.0779]
[1726144449960,44.5284,134.86,134.77,23.08394251]
[1726144450875,1.69525017,134.87,134.77,23.08394251]
[1726144451256,22.25,134.86,134.77,23.08394251]
[1726144451452,21.69525017,134.87,134.77,23.08394251]
[1726144451667,7.96660832,134.89,134.8,20.0]
[1726144451871,0.2751331,134.89,134.8,20.0]
[1726144452609,1.85435343,134.88,134.8,20.0]
[1726144452779,6.9473331,134.89,134.78,20.0]
[1726144452980,6.6726,134.88,134.78,20.0]
[1726144453152,50.0,134.88,134.78,20.0]
[1726144453347,50.0,134.88,134.77,23.08394251]
[1726144453566,23.776884,134.87,134.77,23.08394251]
[1726144454584,30.449884,134.87,134.77,23.08394251]
[1726144454748,23.776884,134.85,134.76,10.0779]
[1726144454954,23.776884,134.85,134.77,23.08394251]
[1726144456083,23.776884,134.86,134.77,23.08394251]
[1726144456471,23.776884,134.87,134.77,23.08394251]
[1726144457268,6.6743,134.85,134.76,10.0779]
[1726144457478,23.776884,134.84,134.76,10.0779]
[1726144457784,23.776884,134.85,134.76,10.0779]
[1726144458174,39.430684,134.85,134.76,10.0779]
[1726144458484,46.104784,134.85,134.76,10.0779]
[1726144458773,6.6746,134.84,134.76,10.0779]
[1726144458979,46.104784,134.85,134.76,10.0779]
[1726144460362,39.430684,134.85,134.76,10.0779]
[1726144460773,39.430684,134.85,134.77,23.08394251]
[1726144460774,23.776884,134.85,134.77,23.08394251]
[1726144461375,22.25,134.84,134.77,23.08394251]
[1726144461578,23.776884,134.83,134.77,23.08394251]
[1726144463772,23.776884,134.83,134.76,10.0779]
[1726144464178,1.85473467,134.82,134.76,10.0779]
[1726144464391,23.776884,134.83,134.76,10.0779]
[1726144464567,6.1,134.86,134.77,23.08394251]
[1726144464774,15.6907,134.88,134.79,23.08394251]
[1726144465169,0.2751331,134.89,134.82,10.0779]
[1726144465383,0.2751331,134.89,134.83,23.08394251]
[1726144465688,29.1973331,134.89,134.82,10.0779]
[1726144466000,1.85415314,134.88,134.82,10.0779]
[1726144466375,23.776884,134.87,134.82,10.0779]
[1726144466983,23.776884,134.88,134.82,10.0779]
[1726144467175,24.0520171,134.89,134.8,20.0]
[1726144467380,24.0520171,134.89,134.79,33.16184251]
[1726144467381,46.3020171,134.89,134.79,10.0779]
[1726144467784,24.0520171,134.89,134.79,10.0779]
[1726144467985,46.3020171,134.89,134.79,33.16184251]
[1726144468176,23.776884,134.87,134.79,10.0779]
[1726144468373,0.2751331,134.89,134.79,10.0779]
[1726144468666,0.2751331,134.89,134.79,33.16184251]
[1726144469084,0.2751331,134.89,134.81,23.08394251]
[1726144469394,6.9472331,134.89,134.79,33.16184251]
[1726144469974,0.2751331,134.89,134.79,33.16184251]
[1726144470374,24.0520171,134.89,134.79,33.16184251]
[1726144470707,2.10635399,134.89,134.79,33.16184251]
[1726144470992,0.2751331,134.89,134.79,33.16184251]
[1726144471794,2.12925867,134.89,134.79,33.16184251]
[1726144472109,24.0520171,134.89,134.79,33.16184251]
[1726144472318,25.90616835,134.89,134.79,33.16184251]
[1726144472485,0.2751331,134.89,134.79,33.16184251]
[1726144474786,8.80147275,134.89,134.79,33.16184251]
[1726144475092,23.776884,134.88,134.79,33.16184251]
[1726144475718,22.5251331,134.89,134.79,33.16184251]
[1726144475719,23.776884,134.86,134.79,33.16184251]
[1726144477317,6.6726,134.88,134.79,33.16184251]
[1726144477318,23.776884,134.87,134.79,33.16184251]
[1726144477632,46.026884,134.88,134.79,33.16184251]
[1726144480510,46.1889639,134.88,134.79,33.16184251]
[1726144480712,52.8616639,134.88,134.79,33.16184251]
[1726144481818,46.1889639,134.88,134.79,33.16184251]
[1726144481993,46.1889639,134.88,134.8,23.08394251]
[1726144482395,23.9389639,134.88,134.8,23.08394251]
[1726144482637,0.1620799,134.88,134.82,23.08394251]
[1726144483815,0.1620799,134.88,134.8,23.08394251]
[1726144483816,23.9389639,134.88,134.8,23.08394251]
[1726144485711,23.776884,134.86,134.8,23.08394251]
[1726144488121,23.776884,134.86,134.82,14.81669607]
[1726144489318,23.776884,134.87,134.82,14.81669607]
[1726144489498,30.6115639,134.88,134.82,14.81669607]
[1726144489699,52.8615639,134.88,134.82,14.81669607]
[1726144490299,52.8615639,134.88,134.8,14.81669607]
[1726144490526,23.776884,134.86,134.8,14.81669607]
[1726144492717,23.776884,134.87,134.8,14.81669607]
[1726144493929,23.776884,134.87,134.82,14.81669607]
[1726144494301,23.9389639,134.88,134.82,14.81669607]
[1726144495923,0.1620799,134.88,134.84,14.81669607]
[1726144497026,0.1620799,134.88,134.79,19.37045163]
[1726144497202,0.1620799,134.88,134.79,24.89459607]
[1726144497203,46.026884,134.85,134.79,24.89459607]
[1726144497406,23.776884,134.85,134.79,24.89459607]
[1726144498210,23.776884,134.85,134.81,14.81669607]
[1726144498436,23.776884,134.87,134.81,14.81669607]
[1726144498732,25.63100185,134.87,134.81,14.81669607]
[1726144499612,46.026884,134.87,134.79,24.89459607]
[1726144500304,23.776884,134.87,134.81,14.81669607]
[1726144500506,0.1620799,134.88,134.85,14.81669607]
[1726144500711,0.1620799,134.88,134.87,14.81669607]
[1726144501230,0.1620799,134.88,134.85,24.89459607]
[1726144502323,0.1620799,134.88,134.82,43.14258317]
[1726144503015,0.1620799,134.88,134.81,14.1613]
[1726144503209,23.776884,134.87,134.81,14.1613]
[1726144503409,0.1620799,134.88,134.81,14.1613]
[1726144504011,0.1620799,134.88,134.82,23.14258317]
[1726144504318,0.1620799,134.88,134.86,23.14258317]
[1726144507936,0.1620799,134.88,134.87,30.0779]
[1726144508150,21.8676,134.95,134.87,30.0779]
[1726144508434,0.2713206,134.96,134.89,23.14258317]
[1726144511046,0.2713206,134.96,134.91,23.14258317]
[1726144511228,0.2713206,134.96,134.92,30.0779]
[1726144511431,0.2713206,134.96,134.94,23.14258317]
[1726144511628,0.2713206,134.96,134.92,53.22048317]
[1726144512851,0.2713206,134.96,134.9,20.0]
[1726144514143,0.2713206,134.96,134.94,23.14258317]
[1726144518853,0.2713206,134.96,134.9,43.14258317]
[1726144519046,0.2713206,134.96,134.9,23.14258317]
[1726144519450,0.2713206,134.96,134.89,10.0779]
[1726144519759,23.776884,134.95,134.86,23.14258317]
[1726144519941,23.776884,134.93,134.86,23.14258317]
[1726144520328,23.776884,134.93,134.88,23.14258317]
[1726144520527,23.776884,134.95,134.88,23.14258317]
[1726144520727,23.776884,134.95,134.9,23.14258317]
[1726144520927,23.776884,134.95,134.85,10.0779]
[1726144521145,23.776884,134.93,134.86,20.0]
[1726144521535,23.776884,134.94,134.86,20.0]
[1726144522930,22.25,134.95,134.85,23.14258317]
[1726144522931,39.977084,134.92,134.85,23.14258317]
[1726144523147,39.977084,134.92,134.83,23.14258317]
[1726144523348,23.776884,134.9,134.83,23.14258317]
[1726144524234,23.776884,134.9,134.84,20.0]
[1726144525050,23.776884,134.9,134.83,23.14258317]
[1726144525965,6.0086,134.91,134.81,0.2713206]
[1726144525966,23.776884,134.88,134.81,0.2713206]
[1726144526143,39.650084,134.86,134.81,0.2713206]
[1726144526850,1.85412913,134.85,134.81,0.2713206]
[1726144527236,39.650084,134.86,134.81,0.2713206]
[1726144528331,15.8732,134.86,134.81,23.41390377]
[1726144529136,15.8732,134.86,134.81,0.2713206]
[1726144529751,15.8732,134.86,134.81,23.41390377]
[1726144530139,23.776884,134.85,134.81,23.41390377]
[1726144530433,15.8732,134.86,134.81,23.41390377]
[1726144530758,6.0086,134.91,134.81,23.41390377]
[1726144530759,16.5965,134.9,134.81,23.41390377]
[1726144530942,16.5965,134.9,134.83,23.14258317]
[1726144531255,16.5965,134.9,134.85,23.14258317]
[1726144531969,6.0086,134.91,134.85,23.14258317]
[1726144532444,1.85338862,134.9,134.85,23.14258317]
[1726144532642,1.85338862,134.9,134.83,23.14258317]
[1726144532865,6.0086,134.91,134.84,20.0]
[1726144533068,23.776884,134.9,134.84,20.0]
[1726144534278,23.776884,134.9,134.82,57.02588189]
[1726144537561,23.776884,134.9,134.84,37.02588189]
[1726144552160,6.0086,134.91,134.87,37.02588189]
[1726144552374,6.0086,134.91,134.83,8.6358444]
[1726144552375,16.676253,134.93,134.9,37.02588189]
[1726144553590,0.079753,134.93,134.9,37.02588189]
[1726144554085,0.079753,134.93,134.9,23.11477292]
[1726144555665,0.079753,134.93,134.88,23.11477292]
[1726144555865,0.079753,134.93,134.89,20.0]
[1726144556386,0.079753,134.93,134.84,4.0834]
[1726144556686,0.079753,134.93,134.89,23.11477292]
[1726144561582,46.166637,134.93,134.85,23.11477292]
[1726144561785,23.776884,134.91,134.85,23.11477292]
[1726144562392,23.776884,134.91,134.83,23.11477292]
[1726144562596,23.776884,134.89,134.83,23.11477292]
[1726144562781,6.6391,134.9,134.83,23.11477292]
[1726144563379,6.6391,134.9,134.85,23.11477292]
[1726144563988,23.776884,134.89,134.85,23.11477292]
[1726144564191,23.776884,134.89,134.82,23.29932932]
[1726144564678,23.776884,134.89,134.83,20.0]
[1726144564885,23.776884,134.89,134.84,23.11477292]
[1726144566568,23.776884,134.89,134.82,43.29932932]
[1726144566768,23.776884,134.89,134.82,23.29932932]
[1726144567003,23.776884,134.89,134.83,20.0]
[1726144567771,15.8071,134.88,134.83,20.0]
[1726144569576,23.776884,134.87,134.82,0.1845564]
[1726144570273,15.8071,134.88,134.83,20.0]
[1726144572781,23.776884,134.87,134.83,20.0]
[1726144572983,23.776884,134.87,134.82,0.1845564]
[1726144573181,6.1997,134.86,134.82,0.1845564]
[1726144576102,6.1997,134.86,134.82,23.29932932]
[1726144577112,6.1997,134.86,134.82,20.1845564]
[1726144577714,6.1997,134.86,134.82,0.1845564]
[1726144580417,23.776884,134.85,134.82,0.1845564]
[1726144583012,6.1997,134.86,134.82,0.1845564]
[1726144584994,15.8071,134.88,134.85,23.11477292]
[1726144585803,15.8071,134.88,134.83,20.0]
[1726144587298,15.8071,134.88,134.82,23.29932932]
[1726144589220,15.8071,134.88,134.82,13.01916258]
[1726144592104,15.8071,134.88,134.86,14.80808183]
[1726144592528,15.8071,134.88,134.84,14.80808183]
[1726144593332,15.8071,134.88,134.78,20.2643094]
[1726144593503,15.8071,134.88,134.83,14.80808183]
[1726144596035,25.63065562,134.87,134.83,14.80808183]
[1726144596236,6.3236,134.86,134.78,0.2643094]
[1726144596524,15.3986,134.84,134.8,14.80808183]
[1726144596702,15.3986,134.84,134.82,14.80808183]
[1726144603608,15.9307,134.87,134.83,20.0]
[1726144603809,6.1247,134.9,134.85,14.80808183]
[1726144604031,6.1247,134.9,134.89,14.80808183]
[1726144604213,15.9307,134.91,134.89,14.80808183]
[1726144606110,15.9307,134.91,134.81,20.0]
[1726144606332,23.776884,134.9,134.84,20.0]
[1726144606536,23.776884,134.9,134.83,23.13433028]
[1726144606735,23.776884,134.9,134.85,23.13433028]
[1726144607335,6.0725,134.89,134.85,23.13433028]
[1726144612921,6.0725,134.89,134.86,8.61318115]
[1726144613257,6.0725,134.89,134.85,23.13433028]
[1726144613258,6.0725,134.89,134.87,8.61318115]
[1726144613544,6.0725,134.89,134.79,4.0834]
[1726144613545,6.673,134.87,134.81,19.37965756]
[1726144613743,6.1632,134.86,134.82,8.61318115]
[1726144614042,6.1632,134.86,134.79,33.90080669]
[1726144614549,6.1632,134.86,134.79,23.13433028]
[1726144614739,6.1632,134.86,134.79,33.9039207]
[1726144615719,6.1632,134.86,134.79,23.13433028]
[1726144616523,6.1632,134.86,134.8,4.09684961]
[1726144616718,6.1632,134.86,134.81,4.09684961]
[1726144616923,6.1632,134.86,134.82,4.09684961]
[1726144617125,6.1632,134.86,134.83,4.09684961]
[1726144617335,15.7346,134.84,134.8,4.09684961]
[1726144617639,15.7346,134.84,134.81,4.09684961]
[1726144617839,15.7346,134.84,134.82,4.09684961]
[1726144618043,15.7346,134.84,134.79,23.13433028]
[1726144618259,15.7346,134.84,134.83,4.09664122]
[1726144618627,15.7346,134.84,134.8,4.09664122]
[1726144618850,15.7346,134.84,134.81,4.09664122]
[1726144619044,15.7346,134.84,134.82,4.09664122]
[1726144619326,15.7346,134.84,134.8,4.09664122]
[1726144619546,15.7346,134.84,134.81,4.09664122]
[1726144619747,15.7346,134.84,134.82,4.09664122]
[1726144619949,15.7346,134.84,134.8,4.09664122]
[1726144620254,15.7346,134.84,134.81,4.09664122]
[1726144620456,15.7346,134.84,134.82,4.09664122]
[1726144620629,15.7346,134.84,134.8,4.09664122]
[1726144620822,15.7346,134.84,134.81,4.09664122]
[1726144621027,15.7346,134.84,134.82,4.09664122]
[1726144621229,15.7346,134.84,134.8,4.09664122]
[1726144621526,15.7346,134.84,134.81,23.13433028]
[1726144621954,6.1632,134.86,134.83,23.13433028]
[1726144622355,6.1632,134.86,134.84,4.09637884]
[1726144622656,6.1632,134.86,134.8,4.09637884]
[1726144622834,6.1632,134.86,134.81,4.09655335]
[1726144623033,6.1632,134.86,134.82,4.09655335]
[1726144623235,6.1632,134.86,134.81,4.09655335]
[1726144623453,6.1632,134.86,134.82,4.09655335]
[1726144623642,6.1632,134.86,134.8,4.09655335]
[1726144623841,23.776884,134.85,134.8,4.09655335]
[1726144624033,15.7695,134.84,134.78,0.2643094]
[1726144624233,8.3542924,134.83,134.81,4.09701176]
[1726144624544,1.85455428,134.82,134.81,4.09701176]
[1726144624737,1.85455428,134.82,134.79,4.09701176]
[1726144625048,6.4998,134.83,134.8,4.09701176]
[1726144625262,6.4998,134.83,134.79,4.09701176]
[1726144625446,8.35445999,134.83,134.79,4.09701176]
[1726144625648,25.63154378,134.82,134.78,0.2643094]
[1726144625950,15.9759,134.81,134.78,0.2643094]
[1726144626149,6.2407,134.79,134.78,0.2643094]
[1726144626359,30.017584,134.79,134.78,0.2643094]
[1726144627742,30.017584,134.79,134.74,0.2643094]
[1726144627941,23.776884,134.78,134.74,0.2643094]
[1726144628349,15.6974,134.77,134.74,0.2643094]
[1726144629082,29.946684,134.75,134.74,0.2643094]
[1726144629286,29.946684,134.75,134.7,0.2643094]
[1726144629287,15.9714,134.73,134.7,0.2643094]
[1726144629564,30.332684,134.71,134.7,0.2643094]
[1726144629777,30.332684,134.71,134.66,0.2643094]
[1726144629778,6.5558,134.71,134.66,0.2643094]
[1726144629946,23.776884,134.7,134.66,0.2643094]
[1726144630275,6.5558,134.71,134.66,0.2643094]
[1726144630664,6.5558,134.71,134.68,23.13433028]
[1726144630842,15.9714,134.73,134.68,23.13433028]
[1726144631265,15.9714,134.73,134.66,0.2643094]
[1726144631463,6.5087,134.72,134.66,0.2643094]
[1726144631972,6.5087,134.72,134.66,23.39863968]
[1726144632271,6.5087,134.72,134.66,0.2643094]
[1726144632572,23.776884,134.71,134.66,0.2643094]
[1726144633071,6.5087,134.72,134.66,0.2643094]
[1726144633667,23.776884,134.71,134.66,0.2643094]
[1726144634051,6.5087,134.72,134.66,23.39863968]
[1726144634957,6.5087,134.72,134.66,0.2643094]
[1726144635151,6.5087,134.72,134.66,23.39863968]
[1726144635754,6.5087,134.72,134.68,23.13433028]
[1726144635968,6.5087,134.72,134.66,23.39863968]
[1726144637379,6.5087,134.72,134.66,0.2643094]
[1726144638084,23.776884,134.71,134.66,0.2643094]
[1726144638886,6.5087,134.72,134.66,0.2643094]
[1726144639393,6.5087,134.72,134.66,23.39863968]
[1726144639555,6.5087,134.72,134.66,0.2643094]
[1726144639754,6.5087,134.72,134.66,23.39863968]
[1726144639981,6.5087,134.72,134.66,0.2643094]
[1726144641582,23.776884,134.71,134.66,0.2643094]
[1726144641892,6.5087,134.72,134.66,0.2643094]
[1726144642367,23.776884,134.71,134.66,0.2643094]
[1726144643187,6.5087,134.72,134.66,0.2643094]
[1726144643952,23.776884,134.71,134.66,0.2643094]
[1726144644559,16.0386,134.7,134.66,0.2643094]
[1726144657609,17.89489768,134.7,134.66,0.2643094]
[1726144657832,16.0386,134.7,134.66,0.2643094]